[Event "AUT Bundesliga 2024-25"]
[Site "Austria"]
[Date "2025.04.05"]
[Round "10.18"]
[White "Haba, Petr"]
[Black "Ivanisevic, Ivan"]
[Result "*"]
[Annotator "RC"]
[ECO "C45"]
[WhiteElo "2413"]
[BlackElo "2527"]
[PlyCount "51"]
[EventDate "2024.08.28"]
[EventType "team-tourn"]
[EventCountry "AUT"]
[SourceTitle "playchess.com"]
[Source "ChessBase"]
[SourceQuality "1"]
[TimeControl "40/5400+30:1800+30"]

1. e4 {[%emt 0:00:19]} e5 {[%emt 0:00:07]} 2. Nf3 {[%emt 0:00:16]} Nc6 {[%emt 0:00:07]} 3. d4 {[%emt 0:00:31]} exd4 {[%emt 0:00:08]} 4. Nxd4 {[%emt 0:00:05]} Bc5 {[%emt 0:01:59]} 5. Nb3 {[%emt 0:00:24]} Bb6 {[%emt 0:00:08]} 6. Nc3 {[%emt 0:00:22]} a5 {[%emt 0:00:09]} 7. Bb5 {[%emt 0:00:18]} Nf6 {[%emt 0:00:21]} 8. Bg5 {[%emt 0:02:30]} a4 {[%emt 0:00:52]} 9. Bxa4 {[%emt 0:12:19]} Rxa4 {[%emt 0:01:39]} 10. Nxa4 {[%emt 0:00:07]} Bxf2+ {[%emt 0:00:04]} 11. Kxf2 {[%emt 0:00:03]} Nxe4+ {[%emt 0:00:09]} 12. Kg1 {[%emt 0:00:35]} Nxg5 {[%emt 0:00:33]} 13. Qe1+ {[%emt 0:04:26]} Ne6 {[%emt 0:00:20]} 14. h3 {[%emt 0:02:05]} O-O {[%emt 0:00:15]} 15. Kh2 {[%emt 0:01:01]} d6 {[%emt 0:04:10]} 16. Rf1 {[%emt 0:00:28]} Bd7 {[%emt 0:11:42]} 17. Nc3 {[%emt 0:01:21]} Ne5 {[%emt 0:01:44]} 18. Rd1 {[%emt 0:04:41]} Ng5 {[%emt 0:14:38]} 19. Qg3 {[%emt 0:18:33]} h6 {[%emt 0:01:26]} 20. Nc5 {[%emt 0:08:05]} Bc8 {[%emt 0:10:43]} 21. Nd3 {[%emt 0:03:04]} Ng6 {[%emt 0:06:38]} 22. Nf4 {[%emt 0:01:38]} Ne7 {[%emt 0:02:56]} 23. Nfd5 {[%emt 0:02:20]} Ng6 {[%emt 0:02:39]} 24. Nf4 {[%emt 0:00:43]} Ne5 {[%emt 0:05:07]} 25. Nd3 {[%emt 0:00:46]} Ng6 {[%emt 0:02:35]} 26. Nf4 {[%emt 0:01:35]} *

[Event "AUT Bundesliga 2024-25"]
[Site "Austria"]
[Date "2025.04.05"]
[Round "10.22"]
[White "Sebenik, Matej"]
[Black "Maiwald, Jens-Uwe"]
[Result "1/2-1/2"]
[Annotator "RC"]
[ECO "E52"]
[WhiteElo "2491"]
[BlackElo "2423"]
[PlyCount "60"]
[EventDate "2024.08.28"]
[EventType "team-tourn"]
[EventCountry "AUT"]
[SourceTitle "playchess.com"]
[Source "ChessBase"]
[SourceQuality "1"]
[TimeControl "40/5400+30:1800+30"]

1. d4 {[%emt 0:00:06]} Nf6 {[%emt 0:00:32]} 2. c4 {[%emt 0:00:21]} e6 {[%emt 0:00:10]} 3. Nc3 {[%emt 0:00:11]} Bb4 {[%emt 0:00:10]} 4. Nf3 {[%emt 0:00:07]} b6 {[%emt 0:00:54]} 5. e3 {[%emt 0:00:28]} Bb7 {[%emt 0:00:26]} 6. Bd3 {[%emt 0:00:33]} O-O {[%emt 0:03:55]} 7. O-O {[%emt 0:00:07]} d5 {[%emt 0:03:25]} 8. cxd5 {[%emt 0:01:16]} exd5 {[%emt 0:00:09]} 9. Ne5 {[%emt 0:00:09]} Bd6 {[%emt 0:03:12]} 10. f4 {[%emt 0:01:30]} c5 {[%emt 0:01:29]} 11. Qf3 {[%emt 0:02:56]} Nc6 {[%emt 0:02:28]} 12. Qh3 {[%emt 0:00:05]} Nb4 {[%emt 0:15:32]} 13. Bb1 {[%emt 0:03:44]} Ne4 {[%emt 0:00:48]} 14. dxc5 {[%emt 0:22:22]} Bxe5 {[%emt 0:05:01]} 15. fxe5 {[%emt 0:00:11]} Qe7 {[%emt 0:00:45]} 16. a3 {[%emt 0:16:32]} Na6 {[%emt 0:00:19]} 17. b4 {[%emt 0:18:49]} bxc5 {[%emt 0:03:26]} 18. Bb2 {[%emt 0:00:23]} cxb4 {[%emt 0:07:39]} 19. Nxe4 {[%emt 0:02:43]} dxe4 {[%emt 0:00:11]} 20. Ba2 {[%emt 0:00:03]} Bc8 {[%emt 0:16:41]} 21. e6 {[%emt 0:16:54]} Bxe6 {[%emt 0:00:51]} 22. Bxe6 {[%emt 0:00:34]} Qxe6 {[%emt 0:06:42]} 23. Qxe6 {[%emt 0:00:04]} fxe6 {[%emt 0:00:09]} 24. Rxf8+ {[%emt 0:00:02]} Kxf8 {[%emt 0:02:01]} 25. axb4 {[%emt 0:00:06]} Nxb4 {[%emt 0:00:26]} 26. Ba3 {[%emt 0:00:17]} Rb8 {[%emt 0:00:08]} 27. Bxb4+ {[%emt 0:00:03]} Rxb4 {[%emt 0:00:08]} 28. Rxa7 {[%emt 0:00:03]} Rb1+ {[%emt 0:02:53]} 29. Kf2 {[%emt 0:00:03]} Rb2+ {[%emt 0:00:18]} 30. Kf1 {[%emt 0:00:04]} Rb1+ {[%emt 0:00:07]} 1/2-1/2

[Event "AUT Bundesliga 2024-25"]
[Site "Austria"]
[Date "2025.04.05"]
[Round "10.27"]
[White "Martinovic, Sasa"]
[Black "Blohberger, Felix"]
[Result "1/2-1/2"]
[Annotator "RC"]
[ECO "D41"]
[WhiteElo "2549"]
[BlackElo "2511"]
[PlyCount "47"]
[EventDate "2024.08.28"]
[EventType "team-tourn"]
[EventCountry "AUT"]
[SourceTitle "playchess.com"]
[Source "ChessBase"]
[SourceQuality "1"]
[TimeControl "40/5400+30:1800+30"]

1. d4 {[%emt 0:00:03]} Nf6 {[%emt 0:00:06]} 2. c4 {[%emt 0:00:03]} e6 {[%emt 0:00:05]} 3. Nf3 {[%emt 0:00:04]} d5 {[%emt 0:00:04]} 4. Nc3 {[%emt 0:00:05]} c5 {[%emt 0:00:13]} 5. cxd5 {[%emt 0:00:19]} cxd4 {[%emt 0:00:19]} 6. Qxd4 {[%emt 0:00:16]} exd5 {[%emt 0:00:09]} 7. e4 {[%emt 0:00:22]} dxe4 {[%emt 0:00:28]} 8. Qxd8+ {[%emt 0:00:07]} Kxd8 {[%emt 0:00:05]} 9. Ng5 {[%emt 0:00:06]} Be6 {[%emt 0:00:11]} 10. Nxe6+ {[%emt 0:00:25]} fxe6 {[%emt 0:00:07]} 11. Bg5 {[%emt 0:00:24]} Nc6 {[%emt 0:00:52]} 12. O-O-O+ {[%emt 0:01:10]} Ke8 {[%emt 0:01:17]} 13. Bc4 {[%emt 0:00:30]} Ne5 {[%emt 0:01:12]} 14. Bxe6 {[%emt 0:00:21]} Nd3+ {[%emt 0:00:09]} 15. Kc2 {[%emt 0:00:20]} Nxf2 {[%emt 0:00:49]} 16. Bxf6 {[%emt 0:00:16]} Nxd1 {[%emt 0:01:12]} 17. Rxd1 {[%emt 0:00:17]} gxf6 {[%emt 1:31:42]} 18. Rd7 {[%emt 0:00:37]} Rd8 {[%emt 0:00:00]} 19. Rxb7 {[%emt 0:00:11]} Rd6 {[%emt 0:00:00]} 20. Bc4 {[%emt 0:00:55]} Rd4 {[%emt 0:00:00]} 21. Be6 {[%emt 0:00:26]} Rd6 {[%emt 0:00:00]} 22. Bc4 {[%emt 0:00:23]} Rd4 {[%emt 0:00:00]} 23. Be6 {[%emt 0:00:06]} Rd6 {[%emt 0:00:00]} 24. Bc4 {[%emt 0:00:04]} 1/2-1/2

[Event "AUT Bundesliga 2024-25"]
[Site "Austria"]
[Date "2025.04.05"]
[Round "10.29"]
[White "Livaic, Leon"]
[Black "Froewis, Georg"]
[Result "1-0"]
[Annotator "RC"]
[ECO "C11"]
[WhiteElo "2536"]
[BlackElo "2429"]
[PlyCount "69"]
[EventDate "2024.08.28"]
[EventType "team-tourn"]
[EventCountry "AUT"]
[SourceTitle "playchess.com"]
[Source "ChessBase"]
[SourceQuality "1"]
[TimeControl "40/5400+30:1800+30"]

1. e4 {[%emt 0:00:05]} e6 {[%emt 0:00:04]} 2. d4 {[%emt 0:00:07]} d5 {[%emt 0:00:03]} 3. Nc3 {[%emt 0:00:11]} Nf6 {[%emt 0:00:12]} 4. e5 {[%emt 0:00:24]} Nfd7 {[%emt 0:00:05]} 5. f4 {[%emt 0:00:09]} c5 {[%emt 0:00:03]} 6. Nf3 {[%emt 0:00:06]} Nc6 {[%emt 0:00:04]} 7. Be3 {[%emt 0:00:06]} Be7 {[%emt 0:00:55]} 8. Qd2 {[%emt 0:00:30]} a6 {[%emt 0:00:16]} 9. Be2 {[%emt 0:04:18]} O-O {[%emt 0:00:40]} 10. O-O {[%emt 0:00:06]} b5 {[%emt 0:00:20]} 11. Nd1 {[%emt 0:01:00]} f5 {[%emt 0:02:30]} 12. c3 {[%emt 0:05:24]} Bb7 {[%emt 0:04:24]} 13. Nf2 {[%emt 0:01:38]} Rc8 {[%emt 0:04:29]} 14. Ng5 {[%emt 0:11:24]} Bxg5 {[%emt 0:10:19]} 15. fxg5 {[%emt 0:01:13]} cxd4 {[%emt 0:00:05]} 16. cxd4 {[%emt 0:00:04]} Qa5 {[%emt 0:00:11]} 17. Qxa5 {[%emt 0:01:14]} Nxa5 {[%emt 0:00:03]} 18. Nd3 {[%emt 0:00:22]} Nc4 {[%emt 0:05:23]} 19. Bc1 {[%emt 0:00:31]} Nb8 {[%emt 0:06:17]} 20. b3 {[%emt 0:03:31]} Nc6 {[%emt 0:01:06]} 21. Rf4 {[%emt 0:05:41]} Nb6 {[%emt 0:05:06]} 22. Ba3 {[%emt 0:01:27]} Rf7 {[%emt 0:01:00]} 23. Kf2 {[%emt 0:11:01]} Nd7 {[%emt 0:02:44]} 24. Ke3 {[%emt 0:00:38]} Ne7 {[%emt 0:00:39]} 25. Rff1 {[%emt 0:02:59]} a5 {[%emt 0:03:49]} 26. Bd6 {[%emt 0:02:50]} b4 {[%emt 0:05:31]} 27. Nf4 {[%emt 0:06:57]} Rc3+ {[%emt 0:02:31]} 28. Kf2 {[%emt 0:03:41]} Nc8 {[%emt 0:08:34]} 29. Nxe6 {[%emt 0:01:03]} Nxd6 {[%emt 0:00:04]} 30. exd6 {[%emt 0:00:06]} Nb6 {[%emt 0:04:21]} 31. Rac1 {[%emt 0:00:59]} Nc8 {[%emt 0:01:49]} 32. Rxc3 {[%emt 0:02:00]} bxc3 {[%emt 0:00:21]} 33. Nd8 {[%emt 0:00:25]} Rd7 {[%emt 0:02:27]} 34. Nxb7 {[%emt 0:00:06]} Rxb7 {[%emt 0:00:03]} 35. Ba6 {[%emt 0:00:29]} 1-0

[Event "AUT Bundesliga 2024-25"]
[Site "Austria"]
[Date "2025.04.05"]
[Round "10.36"]
[White "Balogh, Csaba"]
[Black "Karelina, Polina"]
[Result "1-0"]
[Annotator "RC"]
[ECO "B07"]
[WhiteElo "2542"]
[BlackElo "1903"]
[PlyCount "55"]
[EventDate "2024.08.28"]
[EventType "team-tourn"]
[EventCountry "AUT"]
[SourceTitle "playchess.com"]
[Source "ChessBase"]
[SourceQuality "1"]
[TimeControl "40/5400+30:1800+30"]

1. e4 {[%emt 0:00:08]} d6 {[%emt 0:00:18]} 2. d4 {[%emt 0:00:18]} Nf6 {[%emt 0:00:11]} 3. Nc3 {[%emt 0:00:10]} g6 {[%emt 0:00:19]} 4. Bg5 {[%emt 0:01:19]} c6 {[%emt 0:00:22]} 5. f4 {[%emt 0:03:00]} b5 {[%emt 0:02:22]} 6. a3 {[%emt 0:02:11]} Bg7 {[%emt 0:07:55]} 7. Nf3 {[%emt 0:11:54]} a6 {[%emt 0:05:10]} 8. Bd3 {[%emt 0:01:18]} Nbd7 {[%emt 0:04:38]} 9. e5 {[%emt 0:02:55]} dxe5 {[%emt 0:03:29]} 10. fxe5 {[%emt 0:02:28]} Nd5 {[%emt 0:01:04]} 11. Nxd5 {[%emt 0:01:24]} cxd5 {[%emt 0:00:07]} 12. O-O {[%emt 0:09:43]} Qb6 {[%emt 0:08:35]} 13. Kh1 {[%emt 0:01:58]} Nf8 {[%emt 0:03:47]} 14. a4 {[%emt 0:02:03]} b4 {[%emt 0:04:58]} 15. a5 {[%emt 0:01:05]} Qa7 {[%emt 0:00:39]} 16. Bd2 {[%emt 0:13:38]} Bg4 {[%emt 0:04:52]} 17. h3 {[%emt 0:02:25]} h5 {[%emt 0:05:18]} 18. Bxb4 {[%emt 0:00:19]} Ne6 {[%emt 0:02:14]} 19. c3 {[%emt 0:01:14]} Qd7 {[%emt 0:03:50]} 20. Bc2 {[%emt 0:08:09]} Kf8 {[%emt 0:03:14]} 21. Qe1 {[%emt 0:11:52]} Nf4 {[%emt 0:10:17]} 22. hxg4 {[%emt 0:01:47]} hxg4+ {[%emt 0:01:58]} 23. Nh2 {[%emt 0:00:04]} g5 {[%emt 0:07:04]} 24. g3 {[%emt 0:01:02]} Rh3 {[%emt 0:01:21]} 25. Rd1 {[%emt 0:06:01]} Qe6 {[%emt 0:02:04]} 26. Rd2 {[%emt 0:01:00]} Nh5 {[%emt 0:02:30]} 27. Bf5 {[%emt 0:01:49]} Qh6 {[%emt 0:01:27]} 28. Rg1 {[%emt 0:00:42]} 1-0